Workbook

Sheet LN_SECURITY_2007TO2011
A1: 表一、產業授信彙總資訊—擔保品徵提狀況(8版行業分類 96~100年度)
A2: 資料年月 | B2: 行業別 | D2: 家數 | E2: 授信餘額 | F2: 逾期授信餘額 | G2: 逾放比 | H2: 十足擔保授信餘額 | I2: 十足擔保授信比率 | J2: 其他信用增強授信餘額 (科目別I) | K2: 其他信用增強授信比率 (用途別1) | L2: 純信用授信餘額 (用途別2) | M2: 純信用授信比率
A3: 200712 | B3: A | C3: 農、林、漁、牧業 | D3: 934 | E3: 19816 | F3: 264 | G3: 0.013 | H3: 9848 | I3: 0.4909 | J3: 2821 | K3: 0.1406 | L3: 7393 | M3: =L3/(H3+J3+L3) -> 0.3685076264
A4: 200812 | B4: A | C4: 農、林、漁、牧業 | D4: 865 | E4: 19568 | F4: 331 | G4: 0.017 | H4: 7397 | I4: 0.3721 | J4: 2691 | K4: 0.1354 | L4: 9793 | M4: =L4/(H4+J4+L4) -> 0.4925808561
A5: 200912 | B5: A | C5: 農、林、漁、牧業 | D5: 956 | E5: 18593 | F5: 258 | G5: 0.014 | H5: 7834 | I5: 0.4156 | J5: 2282 | K5: 0.1211 | L5: 8733 | M5: 0.4633137036
A6: 201012 | B6: A | C6: 農、林、漁、牧業 | D6: 979 | E6: 21177 | F6: 275 | G6: 0.013 | H6: 9050 | I6: 0.4222 | J6: 2334 | K6: 0.1089 | L6: 10050 | M6: 0.4688812168
A7: 201112 | B7: A | C7: 農、林、漁、牧業 | D7: 1078 | E7: 22519 | F7: 191 | G7: 0.008 | H7: 10770 | I7: 0.4746 | J7: 2577 | K7: 0.1136 | L7: 9347 | M7: 0.4118709791
A8: 200712 | B8: A01 | C8: 農、牧業 | D8: 424 | E8: 10439 | F8: 118 | G8: 0.011 | H8: 5894 | I8: 0.5587 | J8: 692 | K8: 0.0656 | L8: 3964 | M8: 0.3757345972
A9: 200812 | B9: A01 | C9: 農、牧業 | D9: 429 | E9: 9274 | F9: 135 | G9: 0.015 | H9: 4305 | I9: 0.4584 | J9: 747 | K9: 0.0795 | L9: 4340 | M9: 0.4620954003
A10: 200912 | B10: A01 | C10: 農、牧業 | D10: 496 | E10: 10255 | F10: 123 | G10: 0.012 | H10: 4208 | I10: 0.4056 | J10: 643 | K10: 0.062 | L10: 5525 | M10: 0.5324787972
A11: 201012 | B11: A01 | C11: 農、牧業 | D11: 529 | E11: 12652 | F11: 106 | G11: 0.008 | H11: 4964 | I11: 0.3896 | J11: 886 | K11: 0.0695 | L11: 6890 | M11: 0.5408163265
A12: 201112 | B12: A01 | C12: 農、牧業 | D12: 665 | E12: 13223 | F12: 78 | G12: 0.006 | H12: 6386 | I12: 0.4807 | J12: 798 | K12: 0.0601 | L12: 6102 | M12: 0.4592804456
A13: 200712 | B13: A02 | C13: 林業 | D13: 14 | E13: 350 | F13: 6 | G13: 0.016 | H13: 288 | I13: 0.8136 | J13: 15 | K13: 0.0424 | L13: 51 | M13: 0.1440677966
A14: 200812 | B14: A02 | C14: 林業 | D14: 10 | E14: 67 | F14: 38 | G14: 0.572 | H14: 18 | I14: 0.1714 | J14: 13 | K14: 0.1238 | L14: 74 | M14: 0.7047619048
A15: 200912 | B15: A02 | C15: 林業 | D15: 12 | E15: 107 | F15: 13 | G15: 0.118 | H15: 15 | I15: 0.1261 | J15: 10 | K15: 0.084 | L15: 94 | M15: 0.7899159664
A16: 201012 | B16: A02 | C16: 林業 | D16: 14 | E16: 86 | F16: 7 | G16: 0.082 | H16: 24 | I16: 0.2553 | J16: 9 | K16: 0.0957 | L16: 61 | M16: 0.6489361702
A17: 201112 | B17: A02 | C17: 林業 | D17: 9 | E17: 83 | F17: 0 | G17: 0 | H17: 60 | I17: 0.7143 | J17: 1 | K17: 0.0119 | L17: 23 | M17: 0.2738095238
A18: 200712 | B18: A03 | C18: 漁業 | D18: 498 | E18: 9026 | F18: 141 | G18: 0.016 | H18: 3666 | I18: 0.4003 | J18: 2113 | K18: 0.2307 | L18: 3379 | M18: 0.3689670234
A19: 200812 | B19: A03 | C19: 漁業 | D19: 430 | E19: 10228 | F19: 157 | G19: 0.015 | H19: 3074 | I19: 0.296 | J19: 1932 | K19: 0.186 | L19: 5379 | M19: 0.5179585941
A20: 200912 | B20: A03 | C20: 漁業 | D20: 452 | E20: 8231 | F20: 123 | G20: 0.015 | H20: 3611 | I20: 0.4323 | J20: 1628 | K20: 0.1949 | L20: 3114 | M20: 0.3728001915
A21: 201012 | B21: A03 | C21: 漁業 | D21: 444 | E21: 8439 | F21: 162 | G21: 0.019 | H21: 4061 | I21: 0.4722 | J21: 1440 | K21: 0.1674 | L21: 3100 | M21: 0.3604232066
A22: 201112 | B22: A03 | C22: 漁業 | D22: 414 | E22: 9212 | F22: 113 | G22: 0.012 | H22: 4324 | I22: 0.4637 | J22: 1779 | K22: 0.1908 | L22: 3223 | M22: 0.3455929659
A23: 200712 | B23: B | C23: 礦業及土石採取業 | D23: 930 | E23: 17684 | F23: 252 | G23: 0.014 | H23: 3689 | I23: 0.2057 | J23: 1050 | K23: 0.0585 | L23: 13196 | M23: 0.7357680513
A24: 200812 | B24: B | C24: 礦業及土石採取業 | D24: 515 | E24: 11753 | F24: 201 | G24: 0.017 | H24: 5123 | I24: 0.4294 | J24: 1915 | K24: 0.1605 | L24: 4893 | M24: 0.4101081217
A25: 200912 | B25: B | C25: 礦業及土石採取業 | D25: 461 | E25: 15566 | F25: 155 | G25: 0.01 | H25: 4827 | I25: 0.307 | J25: 1611 | K25: 0.1025 | L25: 9284 | M25: 0.5905101132
A26: 201012 | B26: B | C26: 礦業及土石採取業 | D26: 457 | E26: 14053 | F26: 139 | G26: 0.01 | H26: 5519 | I26: 0.3895 | J26: 1261 | K26: 0.089 | L26: 7390 | M26: 0.5215243472
A27: 201112 | B27: B | C27: 礦業及土石採取業 | D27: 429 | E27: 15663 | F27: 70 | G27: 0.004 | H27: 5330 | I27: 0.3388 | J27: 844 | K27: 0.0536 | L27: 9559 | M27: 0.6075764317
A28: 200712 | B28: B05 | C28: 石油及天然氣礦業 | D28: 85 | E28: 12974 | F28: 30 | G28: 0.002 | H28: 1139 | I28: 0.0876 | J28: 402 | K28: 0.0309 | L28: 11464 | M28: 0.8815071126
A29: 200812 | B29: B05 | C29: 石油及天然氣礦業 | D29: 63 | E29: 6601 | F29: 1 | G29: 0 | H29: 2076 | I29: 0.3145 | J29: 1266 | K29: 0.1918 | L29: 3260 | M29: 0.4937897607
A30: 200912 | B30: B05 | C30: 石油及天然氣礦業 | D30: 76 | E30: 10228 | F30: 1 | G30: 0 | H30: 1058 | I30: 0.1034 | J30: 1126 | K30: 0.1101 | L30: 8044 | M30: 0.7864685178
A31: 201012 | B31: B05 | C31: 石油及天然氣礦業 | D31: 77 | E31: 7390 | F31: 4 | G31: 0.001 | H31: 600 | I31: 0.0811 | J31: 481 | K31: 0.0651 | L31: 6313 | M31: 0.8538003787
A32: 201112 | B32: B05 | C32: 石油及天然氣礦業 | D32: 68 | E32: 9888 | F32: 0 | G32: 0 | H32: 696 | I32: 0.0704 | J32: 254 | K32: 0.0257 | L32: 8939 | M32: 0.9039336637
A33: 200712 | B33: B06 | C33: 砂、石及黏土採取業 | D33: 698 | E33: 2541 | F33: 149 | G33: 0.059 | H33: 1430 | I33: 0.5316 | J33: 472 | K33: 0.1755 | L33: 788 | M33: 0.292936803
A34: 200812 | B34: B06 | C34: 砂、石及黏土採取業 | D34: 333 | E34: 2942 | F34: 93 | G34: 0.032 | H34: 2062 | I34: 0.6846 | J34: 367 | K34: 0.1218 | L34: 583 | M34: 0.1935590969
A35: 200912 | B35: B06 | C35: 砂、石及黏土採取業 | D35: 287 | E35: 3955 | F35: 98 | G35: 0.025 | H35: 2915 | I35: 0.7192 | J35: 368 | K35: 0.0908 | L35: 770 | M35: 0.1899827288
A36: 201012 | B36: B06 | C36: 砂、石及黏土採取業 | D36: 288 | E36: 4401 | F36: 77 | G36: 0.017 | H36: 3265 | I36: 0.7304 | J36: 598 | K36: 0.1338 | L36: 607 | M36: 0.1357941834
A37: 201112 | B37: B06 | C37: 砂、石及黏土採取業 | D37: 279 | E37: 4216 | F37: 27 | G37: 0.006 | H37: 3346 | I37: 0.7888 | J37: 535 | K37: 0.1261 | L37: 361 | M37: 0.08510136728
A38: 200712 | B38: B07 | C38: 其他礦業及土石採取業 | D38: 158 | E38: 2168 | F38: 73 | G38: 0.034 | H38: 1120 | I38: 0.4998 | J38: 177 | K38: 0.079 | L38: 944 | M38: 0.4212405176
A39: 200812 | B39: B07 | C39: 其他礦業及土石採取業 | D39: 129 | E39: 2210 | F39: 107 | G39: 0.049 | H39: 985 | I39: 0.4249 | J39: 283 | K39: 0.1221 | L39: 1050 | M39: 0.4529767041
A40: 200912 | B40: B07 | C40: 其他礦業及土石採取業 | D40: 114 | E40: 1383 | F40: 57 | G40: 0.041 | H40: 854 | I40: 0.5931 | J40: 116 | K40: 0.0806 | L40: 470 | M40: 0.3263888889
A41: 201012 | B41: B07 | C41: 其他礦業及土石採取業 | D41: 105 | E41: 2261 | F41: 58 | G41: 0.026 | H41: 1654 | I41: 0.7176 | J41: 181 | K41: 0.0785 | L41: 470 | M41: 0.2039045553
A42: 201112 | B42: B07 | C42: 其他礦業及土石採取業 | D42: 96 | E42: 1559 | F42: 43 | G42: 0.028 | H42: 1288 | I42: 0.804 | J42: 55 | K42: 0.0343 | L42: 259 | M42: 0.1616729089
A43: 200712 | B43: C | C43: 製造業 | D43: 47846 | E43: 4141370 | F43: 77500 | G43: 0.019 | H43: 1632644 | I43: 0.3873 | J43: 398370 | K43: 0.0945 | L43: 2184347 | M43: 0.5181874103
A44: 200812 | B44: C | C44: 製造業 | D44: 45024 | E44: 4421335 | F44: 76606 | G44: 0.017 | H44: 1776977 | I44: 0.3955 | J44: 399222 | K44: 0.0888 | L44: 2317323 | M44: 0.5157030499
A45: 200912 | B45: C | C45: 製造業 | D45: 45630 | E45: 4233969 | F45: 58039 | G45: 0.014 | H45: 1770296 | I45: 0.4125 | J45: 368346 | K45: 0.0858 | L45: 2152526 | M45: 0.5016177414
A46: 201012 | B46: C | C46: 製造業 | D46: 44578 | E46: 4529371 | F46: 33440 | G46: 0.007 | H46: 1797368 | I46: 0.3941 | J46: 412904 | K46: 0.0905 | L46: 2350553 | M46: 0.5153789062
A47: 201112 | B47: C | C47: 製造業 | D47: 44461 | E47: 4970301 | F47: 29531 | G47: 0.006 | H47: 1899918 | I47: 0.38 | J47: 430566 | K47: 0.0861 | L47: 2668707 | M47: 0.5338277733
A48: 200712 | B48: C08 | C48: 食品製造業 | D48: 1777 | E48: 137974 | F48: 4654 | G48: 0.034 | H48: 50642 | I48: 0.3556 | J48: 19853 | K48: 0.1394 | L48: 71912 | M48: 0.5049751768
A49: 200812 | B49: C08 | C49: 食品製造業 | D49: 1727 | E49: 145343 | F49: 4218 | G49: 0.029 | H49: 54903 | I49: 0.3675 | J49: 18989 | K49: 0.1271 | L49: 75489 | M49: 0.505345392
A50: 200912 | B50: C08 | C50: 食品製造業 | D50: 1835 | E50: 137896 | F50: 3480 | G50: 0.025 | H50: 56831 | I50: 0.402 | J50: 18554 | K50: 0.1312 | L50: 65981 | M50: 0.4667388198
A51: 201012 | B51: C08 | C51: 食品製造業 | D51: 1863 | E51: 142746 | F51: 2145 | G51: 0.015 | H51: 59191 | I51: 0.4086 | J51: 20380 | K51: 0.1407 | L51: 65300 | M51: 0.450745836
A52: 201112 | B52: C08 | C52: 食品製造業 | D52: 1901 | E52: 155377 | F52: 1156 | G52: 0.007 | H52: 59422 | I52: 0.3796 | J52: 22511 | K52: 0.1438 | L52: 74586 | M52: 0.4765300059
A53: 200712 | B53: C09 | C53: 飲料製造業 | D53: 170 | E53: 10890 | F53: 551 | G53: 0.051 | H53: 3050 | I53: 0.2667 | J53: 1648 | K53: 0.1441 | L53: 6736 | M53: 0.5891201679
A54: 200812 | B54: C09 | C54: 飲料製造業 | D54: 163 | E54: 10530 | F54: 102 | G54: 0.01 | H54: 2824 | I54: 0.2659 | J54: 1588 | K54: 0.1495 | L54: 6209 | M54: 0.584596554
A55: 200912 | B55: C09 | C55: 飲料製造業 | D55: 166 | E55: 9162 | F55: 81 | G55: 0.009 | H55: 2664 | I55: 0.2886 | J55: 1051 | K55: 0.1138 | L55: 5517 | M55: 0.5975953206
A56: 201012 | B56: C09 | C56: 飲料製造業 | D56: 161 | E56: 10905 | F56: 51 | G56: 0.005 | H56: 3426 | I56: 0.3127 | J56: 806 | K56: 0.0736 | L56: 6723 | M56: 0.6136923779
A57: 201112 | B57: C09 | C57: 飲料製造業 | D57: 150 | E57: 12900 | F57: 48 | G57: 0.004 | H57: 3760 | I57: 0.2904 | J57: 925 | K57: 0.0714 | L57: 8262 | M57: 0.6381401097
A58: 200712 | B58: C10 | C58: 菸草製造業 | D58: 21 | E58: 2868 | F58: 3 | G58: 0.001 | H58: 102 | I58: 0.0355 | J58: 1326 | K58: 0.4619 | L58: 1443 | M58: 0.5026123302
A59: 200812 | B59: C10 | C59: 菸草製造業 | D59: 23 | E59: 3858 | F59: 3 | G59: 0.001 | H59: 846 | I59: 0.2192 | J59: 1520 | K59: 0.3938 | L59: 1494 | M59: 0.3870466321
A60: 200912 | B60: C10 | C60: 菸草製造業 | D60: 16 | E60: 2229 | F60: 3 | G60: 0.001 | H60: 248 | I60: 0.1111 | J60: 140 | K60: 0.0627 | L60: 1845 | M60: 0.8262427228
A61: 201012 | B61: C10 | C61: 菸草製造業 | D61: 13 | E61: 1517 | F61: 0 | G61: 0 | H61: 144 | I61: 0.0949 | J61: 234 | K61: 0.1543 | L61: 1139 | M61: 0.7508239947
A62: 201112 | B62: C10 | C62: 菸草製造業 | D62: 11 | E62: 1094 | F62: 1 | G62: 0.001 | H62: 47 | I62: 0.043 | J62: 10 | K62: 0.0091 | L62: 1037 | M62: 0.9478976234
A63: 200712 | B63: C11 | C63: 紡織業 | D63: 2482 | E63: 195547 | F63: 9854 | G63: 0.05 | H63: 87194 | I63: 0.4248 | J63: 24700 | K63: 0.1203 | L63: 93370 | M63: 0.454877621
A64: 200812 | B64: C11 | C64: 紡織業 | D64: 2212 | E64: 188203 | F64: 6944 | G64: 0.037 | H64: 84730 | I64: 0.4345 | J64: 25839 | K64: 0.1325 | L64: 84435 | M64: 0.4329911181
A65: 200912 | B65: C11 | C65: 紡織業 | D65: 2224 | E65: 175148 | F65: 5297 | G65: 0.03 | H65: 84600 | I65: 0.4688 | J65: 25440 | K65: 0.141 | L65: 70403 | M65: 0.3901675321
A66: 201012 | B66: C11 | C66: 紡織業 | D66: 2095 | E66: 182745 | F66: 2113 | G66: 0.012 | H66: 79052 | I66: 0.4279 | J66: 25053 | K66: 0.1356 | L66: 80655 | M66: 0.4365392942
A67: 201112 | B67: C11 | C67: 紡織業 | D67: 2036 | E67: 195629 | F67: 953 | G67: 0.005 | H67: 82064 | I67: 0.4177 | J67: 24304 | K67: 0.1237 | L67: 90119 | M67: 0.4586512085
A68: 200712 | B68: C12 | C68: 成衣及服飾品製造業 | D68: 1015 | E68: 29999 | F68: 1424 | G68: 0.047 | H68: 14626 | I68: 0.4659 | J68: 4243 | K68: 0.1352 | L68: 12523 | M68: =L68/(H68+J68+L68) -> 0.3989232926
A69: 200812 | B69: C12 | C69: 成衣及服飾品製造業 | D69: 896 | E69: 30284 | F69: 874 | G69: 0.029 | H69: 15504 | I69: 0.4977 | J69: 4502 | K69: 0.1445 | L69: 11143 | M69: 0.3577321904
A70: 200912 | B70: C12 | C70: 成衣及服飾品製造業 | D70: 916 | E70: 26749 | F70: 685 | G70: 0.026 | H70: 14185 | I70: 0.5172 | J70: 3264 | K70: 0.119 | L70: 9978 | M70: 0.3638020928
A71: 201012 | B71: C12 | C71: 成衣及服飾品製造業 | D71: 852 | E71: 27811 | F71: 528 | G71: 0.019 | H71: 14662 | I71: 0.5178 | J71: 3892 | K71: 0.1375 | L71: 9761 | M71: 0.3447289423
A72: 201112 | B72: C12 | C72: 成衣及服飾品製造業 | D72: 828 | E72: 29229 | F72: 338 | G72: 0.012 | H72: 14963 | I72: 0.5062 | J72: 3746 | K72: 0.1267 | L72: 10849 | M72: 0.3670410718
A73: 200712 | B73: C13 | C73: 皮革、毛皮及其製品製造業 | D73: 782 | E73: 40676 | F73: 683 | G73: 0.017 | H73: 8600 | I73: 0.2082 | J73: 3903 | K73: 0.0945 | L73: 28804 | M73: 0.697315225
A74: 200812 | B74: C13 | C74: 皮革、毛皮及其製品製造業 | D74: 660 | E74: 41034 | F74: 396 | G74: 0.01 | H74: 6997 | I74: 0.1691 | J74: 3888 | K74: 0.094 | L74: 30498 | M74: 0.7369692869
A75: 200912 | B75: C13 | C75: 皮革、毛皮及其製品製造業 | D75: 698 | E75: 35807 | F75: 650 | G75: 0.018 | H75: 7572 | I75: 0.2077 | J75: 2701 | K75: 0.0741 | L75: 26181 | M75: 0.7181927909
A76: 201012 | B76: C13 | C76: 皮革、毛皮及其製品製造業 | D76: 608 | E76: 35135 | F76: 467 | G76: 0.013 | H76: 7819 | I76: 0.2199 | J76: 2999 | K76: 0.0844 | L76: 24734 | M76: 0.6957133213
A77: 201112 | B77: C13 | C77: 皮革、毛皮及其製品製造業 | D77: 570 | E77: 42822 | F77: 176 | G77: 0.004 | H77: 7366 | I77: 0.1713 | J77: 3139 | K77: 0.073 | L77: 32487 | M77: 0.7556522144
A78: 200712 | B78: C14 | C78: 木竹製品製造業 | D78: 750 | E78: 11793 | F78: 389 | G78: 0.033 | H78: 7325 | I78: 0.602 | J78: 1667 | K78: 0.137 | L78: 3175 | M78: 0.2609517547
A79: 200812 | B79: C14 | C79: 木竹製品製造業 | D79: 697 | E79: 11249 | F79: 244 | G79: 0.022 | H79: 7213 | I79: 0.6297 | J79: 1464 | K79: 0.1278 | L79: 2777 | M79: 0.2424480531
A80: 200912 | B80: C14 | C80: 木竹製品製造業 | D80: 684 | E80: 10976 | F80: 388 | G80: 0.035 | H80: 7620 | I80: 0.6714 | J80: 1785 | K80: 0.1573 | L80: 1944 | M80: 0.1712926249
A81: 201012 | B81: C14 | C81: 木竹製品製造業 | D81: 670 | E81: 11544 | F81: 126 | G81: 0.011 | H81: 7684 | I81: 0.6585 | J81: 2125 | K81: 0.1821 | L81: 1860 | M81: 0.1593966921
A82: 201112 | B82: C14 | C82: 木竹製品製造業 | D82: 620 | E82: 11841 | F82: 186 | G82: 0.016 | H82: 7894 | I82: 0.6585 | J82: 2326 | K82: 0.194 | L82: 1768 | M82: 0.1474808141
A83: 200712 | B83: C15 | C83: 紙漿、紙及紙製品製造業 | D83: 1308 | E83: 54608 | F83: 1782 | G83: 0.033 | H83: 20026 | I83: 0.3552 | J83: 6071 | K83: 0.1077 | L83: 30282 | M83: 0.5371148832
A84: 200812 | B84: C15 | C84: 紙漿、紙及紙製品製造業 | D84: 1218 | E84: 59440 | F84: 1733 | G84: 0.029 | H84: 21107 | I84: 0.3451 | J84: 6681 | K84: 0.1092 | L84: 33375 | M84: 0.5456730376
A85: 200912 | B85: C15 | C85: 紙漿、紙及紙製品製造業 | D85: 1198 | E85: 58499 | F85: 1441 | G85: 0.025 | H85: 22430 | I85: 0.3742 | J85: 5871 | K85: 0.0979 | L85: 31639 | M85: 0.5278445112
A86: 201012 | B86: C15 | C86: 紙漿、紙及紙製品製造業 | D86: 1163 | E86: 65606 | F86: 1356 | G86: 0.021 | H86: 23426 | I86: 0.356 | J86: 7543 | K86: 0.1146 | L86: 34834 | M86: 0.5293679619
A87: 201112 | B87: C15 | C87: 紙漿、紙及紙製品製造業 | D87: 1123 | E87: 74179 | F87: 1264 | G87: 0.017 | H87: 25012 | I87: 0.3315 | J87: 7218 | K87: 0.0957 | L87: 43213 | M87: 0.5727900534
A88: 200712 | B88: C16 | C88: 印刷及資料儲存媒體複製業 | D88: 1839 | E88: 27113 | F88: 669 | G88: 0.025 | H88: 18900 | I88: 0.6807 | J88: 2676 | K88: 0.0964 | L88: 6188 | M88: 0.2228785478
A89: 200812 | B89: C16 | C89: 印刷及資料儲存媒體複製業 | D89: 1670 | E89: 25670 | F89: 723 | G89: 0.028 | H89: 17807 | I89: 0.6752 | J89: 2707 | K89: 0.1026 | L89: 5860 | M89: 0.222188519
A90: 200912 | B90: C16 | C90: 印刷及資料儲存媒體複製業 | D90: 1613 | E90: 25564 | F90: 606 | G90: 0.024 | H90: 18753 | I90: 0.7168 | J90: 2795 | K90: 0.1068 | L90: 4615 | M90: 0.1763941444
A91: 201012 | B91: C16 | C91: 印刷及資料儲存媒體複製業 | D91: 1492 | E91: 26881 | F91: 419 | G91: 0.016 | H91: 19470 | I91: 0.7132 | J91: 2969 | K91: 0.1088 | L91: 4860 | M91: 0.1780284992
A92: 201112 | B92: C16 | C92: 印刷及資料儲存媒 體複製業 | D92: 1457 | E92: 29135 | F92: 268 | G92: 0.009 | H92: 19921 | I92: 0.6782 | J92: 3657 | K92: 0.1245 | L92: 5797 | M92: 0.1973446809
A93: 200712 | B93: C17 | C93: 石油及煤製品製造業 | D93: 139 | E93: 228307 | F93: 58 | G93: 0 | H93: 30289 | I93: 0.1326 | J93: 8192 | K93: 0.0359 | L93: 189885 | M93: 0.8314941804
A94: 200812 | B94: C17 | C94: 石油及煤製品製造業 | D94: 138 | E94: 287634 | F94: 95 | G94: 0 | H94: 42722 | I94: 0.1485 | J94: 9311 | K94: 0.0324 | L94: 235696 | M94: 0.8191596954
A95: 200912 | B95: C17 | C95: 石油及煤製品製造業 | D95: 140 | E95: 281287 | F95: 42 | G95: 0 | H95: 30189 | I95: 0.1073 | J95: 6515 | K95: 0.0232 | L95: 244625 | M95: 0.8695335355
A96: 201012 | B96: C17 | C96: 石油及煤製品製造業 | D96: 128 | E96: 281393 | F96: 10 | G96: 0 | H96: 22999 | I96: 0.0817 | J96: 8774 | K96: 0.0312 | L96: 249630 | M96: 0.887090756
A97: 201112 | B97: C17 | C97: 石油及煤製品製造業 | D97: 131 | E97: 383615 | F97: 13 | G97: 0 | H97: 29920 | I97: 0.078 | J97: 11117 | K97: 0.029 | L97: 342590 | M97: 0.8930289057
A98: 200712 | B98: C18 | C98: 化學材料製造業 | D98: 854 | E98: 335752 | F98: 4653 | G98: 0.014 | H98: 77072 | I98: 0.2264 | J98: 23412 | K98: 0.0688 | L98: 239911 | M98: 0.7048017744
A99: 200812 | B99: C18 | C99: 化學材料製造業 | D99: 775 | E99: 315767 | F99: 2230 | G99: 0.007 | H99: 73267 | I99: 0.2304 | J99: 26639 | K99: 0.0838 | L99: 218078 | M99: 0.6858143806
A100: 200912 | B100: C18 | C100: 化學材料製造業 | D100: 844 | E100: 302307 | F100: 1425 | G100: 0.005 | H100: 63320 | I100: 0.2085 | J100: 22749 | K100: 0.0749 | L100: 217650 | M100: 0.716616346
A101: 201012 | B101: C18 | C101: 化學材料製造業 | D101: 831 | E101: 298279 | F101: 1085 | G101: 0.004 | H101: 65845 | I101: 0.2199 | J101: 24619 | K101: 0.0822 | L101: 208901 | M101: 0.6978137057
A102: 201112 | B102: C18 | C102: 化學材料製造業 | D102: 837 | E102: 350422 | F102: 1369 | G102: 0.004 | H102: 80298 | I102: 0.2283 | J102: 24583 | K102: 0.0699 | L102: 246809 | M102: 0.7017799767
A103: 200712 | B103: C19 | C103: 化學製品製造業 | D103: 1229 | E103: 69830 | F103: 725 | G103: 0.01 | H103: 23978 | I103: 0.3403 | J103: 6914 | K103: 0.0981 | L103: 39570 | M103: 0.561579291
A104: 200812 | B104: C19 | C104: 化學製品製造業 | D104: 1138 | E104: 71257 | F104: 679 | G104: 0.01 | H104: 26910 | I104: 0.3743 | J104: 6095 | K104: 0.0848 | L104: 38884 | M104: 0.5408894268
A105: 200912 | B105: C19 | C105: 化學製品製造業 | D105: 1196 | E105: 71325 | F105: 363 | G105: 0.005 | H105: 27519 | I105: 0.3839 | J105: 6294 | K105: 0.0878 | L105: 37875 | M105: 0.5283311014
A106: 201012 | B106: C19 | C106: 化學製品製造業 | D106: 1216 | E106: 62104 | F106: 182 | G106: 0.003 | H106: 25724 | I106: 0.413 | J106: 7355 | K106: 0.1181 | L106: 29206 | M106: 0.4689090471
A107: 201112 | B107: C19 | C107: 化學製品製造業 | D107: 1164 | E107: 69828 | F107: 61 | G107: 0.001 | H107: 27428 | I107: 0.3925 | J107: 5779 | K107: 0.0827 | L107: 36668 | M107: 0.524765653
A108: 200712 | B108: C20 | C108: 藥品製造業 | D108: 289 | E108: 23180 | F108: 355 | G108: 0.015 | H108: 12327 | I108: 0.5268 | J108: 2850 | K108: 0.1218 | L108: 8221 | M108: 0.3513548167
A109: 200812 | B109: C20 | C109: 藥品製造業 | D109: 277 | E109: 23567 | F109: 93 | G109: 0.004 | H109: 14522 | I109: 0.6138 | J109: 2584 | K109: 0.1092 | L109: 6553 | M109: 0.2769770489
A110: 200912 | B110: C20 | C110: 藥品製造業 | D110: 296 | E110: 21787 | F110: 103 | G110: 0.005 | H110: 12740 | I110: 0.582 | J110: 2335 | K110: 0.1067 | L110: 6815 | M110: 0.3113293741
A111: 201012 | B111: C20 | C111: 藥品製造業 | D111: 306 | E111: 24203 | F111: 46 | G111: 0.002 | H111: 12765 | I111: 0.5264 | J111: 3640 | K111: 0.1501 | L111: 7845 | M111: 0.3235051546
A112: 201112 | B112: C20 | C112: 藥品製造業 | D112: 290 | E112: 29643 | F112: 12 | G112: 0 | H112: 13794 | I112: 0.4652 | J112: 4526 | K112: 0.1526 | L112: 11332 | M112: 0.3821664643
A113: 200712 | B113: C21 | C113: 橡膠製品製造業 | D113: 901 | E113: 33072 | F113: 232 | G113: 0.007 | H113: 11002 | I113: 0.3304 | J113: 2599 | K113: 0.078 | L113: 19699 | M113: 0.5915615616
A114: 200812 | B114: C21 | C114: 橡膠製品製造業 | D114: 780 | E114: 38563 | F114: 225 | G114: 0.006 | H114: 12238 | I114: 0.3157 | J114: 3577 | K114: 0.0923 | L114: 22954 | M114: 0.5920709845
A115: 200912 | B115: C21 | C115: 橡膠製品製造業 | D115: 794 | E115: 37095 | F115: 185 | G115: 0.005 | H115: 13158 | I115: 0.3529 | J115: 3272 | K115: 0.0878 | L115: 20851 | M115: 0.5592929374
A116: 201012 | B116: C21 | C116: 橡膠製品製造業 | D116: 754 | E116: 43970 | F116: 101 | G116: 0.002 | H116: 15172 | I116: 0.3443 | J116: 4978 | K116: 0.113 | L116: 23921 | M116: 0.5427832361
A117: 201112 | B117: C21 | C117: 橡膠製品製造業 | D117: 746 | E117: 50300 | F117: 40 | G117: 0.001 | H117: 13856 | I117: 0.2752 | J117: 5251 | K117: 0.1043 | L117: 31234 | M117: 0.620448541
A118: 200712 | B118: C22 | C118: 塑膠製品製造業 | D118: 4192 | E118: 162009 | F118: 3001 | G118: 0.019 | H118: 74717 | I118: 0.453 | J118: 16259 | K118: 0.0986 | L118: 73977 | M118: 0.4484732015
A119: 200812 | B119: C22 | C119: 塑膠製品製造業 | D119: 3935 | E119: 158363 | F119: 2526 | G119: 0.016 | H119: 82772 | I119: 0.5162 | J119: 14078 | K119: 0.0878 | L119: 63513 | M119: 0.3960576941
A120: 200912 | B120: C22 | C120: 塑膠製品製造業 | D120: 3946 | E120: 156101 | F120: 2119 | G120: 0.014 | H120: 78265 | I120: 0.4947 | J120: 17067 | K120: 0.1079 | L120: 62874 | M120: 0.3974185556
A121: 201012 | B121: C22 | C121: 塑膠製品製造業 | D121: 3861 | E121: 145345 | F121: 790 | G121: 0.005 | H121: 74154 | I121: 0.5075 | J121: 14422 | K121: 0.0987 | L121: 57538 | M121: 0.3937884118
A122: 201112 | B122: C22 | C122: 塑膠製品製造業 | D122: 3789 | E122: 143102 | F122: 704 | G122: 0.005 | H122: 81452 | I122: 0.567 | J122: 14912 | K122: 0.1038 | L122: 47293 | M122: 0.3292077657
A123: 200712 | B123: C23 | C123: 非金屬礦物製品製造業 | D123: 1667 | E123: 106576 | F123: 3408 | G123: 0.032 | H123: 37377 | I123: 0.3399 | J123: 14322 | K123: 0.1303 | L123: 58255 | M123: 0.529812467
A124: 200812 | B124: C23 | C124: 非金屬礦物製品製造業 | D124: 1523 | E124: 106929 | F124: 2533 | G124: 0.024 | H124: 39275 | I124: 0.3589 | J124: 14522 | K124: 0.1327 | L124: 55626 | M124: 0.5083574751
A125: 200912 | B125: C23 | C125: 非金屬礦物製品製造業 | D125: 1537 | E125: 106391 | F125: 2275 | G125: 0.021 | H125: 41755 | I125: 0.3843 | J125: 13182 | K125: 0.1213 | L125: 53723 | M125: 0.4944137677
A126: 201012 | B126: C23 | C126: 非金屬礦物製品製造業 | D126: 1495 | E126: 107403 | F126: 1571 | G126: 0.015 | H126: 44777 | I126: 0.4109 | J126: 13815 | K126: 0.1268 | L126: 50373 | M126: 0.4622860552
A127: 201112 | B127: C23 | C127: 非金屬礦物製品製造業 | D127: 1441 | E127: 88051 | F127: 1098 | G127: 0.012 | H127: 41112 | I127: 0.4612 | J127: 12427 | K127: 0.1394 | L127: 35610 | M127: 0.3994436281
A128: 200712 | B128: C24 | C128: 基本金屬製造業 | D128: 3033 | E128: 356848 | F128: 6485 | G128: 0.018 | H128: 101177 | I128: 0.279 | J128: 54700 | K128: 0.1508 | L128: 206750 | M128: 0.5701450802
A129: 200812 | B129: C24 | C129: 基本金屬製造業 | D129: 2921 | E129: 401470 | F129: 4887 | G129: 0.012 | H129: 117795 | I129: 0.29 | J129: 47502 | K129: 0.1169 | L129: 240898 | M129: 0.5930599835
A130: 200912 | B130: C24 | C130: 基本金屬製造業 | D130: 2904 | E130: 407847 | F130: 4367 | G130: 0.011 | H130: 123971 | I130: 0.3009 | J130: 48891 | K130: 0.1187 | L130: 239140 | M130: 0.5804340756
A131: 201012 | B131: C24 | C131: 基本金屬製造業 | D131: 2859 | E131: 459245 | F131: 2448 | G131: 0.005 | H131: 163292 | I131: 0.3537 | J131: 53370 | K131: 0.1156 | L131: 244979 | M131: 0.5306699362
A132: 201112 | B132: C24 | C132: 基本金屬製造業 | D132: 2785 | E132: 477697 | F132: 736 | G132: 0.002 | H132: 175273 | I132: 0.3664 | J132: 51458 | K132: 0.1076 | L132: 251697 | M132: =L132/(H132+J132+L132) -> 0.5260917003
A133: 200712 | B133: C25 | C133: 金屬製品製造業 | D133: 10304 | E133: 284380 | F133: 3253 | G133: 0.011 | H133: 122620 | I133: 0.4265 | J133: 38875 | K133: 0.1352 | L133: 126018 | M133: 0.4383036593
A134: 200812 | B134: C25 | C134: 金屬製品製造業 | D134: 9977 | E134: 279450 | F134: 3490 | G134: 0.012 | H134: 126972 | I134: 0.4492 | J134: 37693 | K134: 0.1334 | L134: 117970 | M134: 0.417393458
A135: 200912 | B135: C25 | C135: 金屬製品製造業 | D135: 10050 | E135: 266294 | F135: 3339 | G135: 0.013 | H135: 136172 | I135: 0.5052 | J135: 39846 | K135: 0.1478 | L135: 93505 | M135: 0.3469277205
A136: 201012 | B136: C25 | C136: 金屬製品製造業 | D136: 10024 | E136: 298166 | F136: 1790 | G136: 0.006 | H136: 148751 | I136: 0.496 | J136: 44775 | K136: 0.1493 | L136: 106359 | M136: 0.3546659553
A137: 201112 | B137: C25 | C137: 金屬製品製造業 | D137: 10256 | E137: 321588 | F137: 1073 | G137: 0.003 | H137: 156358 | I137: 0.4846 | J137: 54897 | K137: 0.1702 | L137: 111382 | M137: 0.3452238894
A138: 200712 | B138: C26 | C138: 電子零組件製造業 | D138: 3967 | E138: 1102986 | F138: 19802 | G138: 0.018 | H138: 632349 | I138: 0.5637 | J138: 72352 | K138: 0.0645 | L138: 417135 | M138: 0.3718324247
A139: 200812 | B139: C26 | C139: 電子零組件製造業 | D139: 3823 | E139: 1268131 | F139: 16828 | G139: 0.013 | H139: 719445 | I139: 0.5601 | J139: 85567 | K139: 0.0666 | L139: 479531 | M139: 0.3733086397
A140: 200912 | B140: C26 | C140: 電子零組件製造業 | D140: 3958 | E140: 1205899 | F140: 13075 | G140: 0.011 | H140: 712659 | I140: 0.5847 | J140: 66449 | K140: 0.0545 | L140: 439673 | M140: 0.3607481574
A141: 201012 | B141: C26 | C141: 電子零組件製造業 | D141: 3953 | E141: 1281154 | F141: 6443 | G141: 0.005 | H141: 662378 | I141: 0.5144 | J141: 77155 | K141: 0.0599 | L141: 548023 | M141: 0.4256304192
A142: 201112 | B142: C26 | C142: 電子零組件製造業 | D142: 3903 | E142: 1407632 | F142: 4578 | G142: 0.003 | H142: 718001 | I142: 0.5084 | J142: 80178 | K142: 0.0568 | L142: 613996 | M142: 0.4347874732
A143: 200712 | B143: C27 | C143: 電腦、電子產品及光學製品製造業 | D143: 2822 | E143: 320700 | F143: 6094 | G143: 0.019 | H143: 75255 | I143: 0.2305 | J143: 27501 | K143: 0.0842 | L143: 223677 | M143: 0.6852156492
A144: 200812 | B144: C27 | C144: 電腦、電子產品及光學製品製造業 | D144: 2585 | E144: 316311 | F144: 14084 | G144: 0.045 | H144: 70681 | I144: 0.2148 | J144: 25402 | K144: 0.0772 | L144: 232971 | M144: 0.708002334
A145: 200912 | B145: C27 | C145: 電腦、電子產品及光學製品製造業 | D145: 2626 | E145: 316554 | F145: 8100 | G145: 0.026 | H145: 75333 | I145: 0.2321 | J145: 21919 | K145: 0.0675 | L145: 227298 | M145: 0.7003481744
A146: 201012 | B146: C27 | C146: 電腦、電子產品及光學製品製造業 | D146: 2516 | E146: 414338 | F146: 4473 | G146: 0.011 | H146: 94076 | I146: 0.2246 | J146: 28371 | K146: 0.0677 | L146: 296325 | M146: 0.7076046154
A147: 201112 | B147: C27 | C147: 電腦、電子產品及光學製品製造業 | D147: 2372 | E147: 471182 | F147: 2811 | G147: 0.006 | H147: 79067 | I147: 0.1668 | J147: 27345 | K147: 0.0577 | L147: 367565 | M147: 0.7754912158
A148: 200712 | B148: C28 | C148: 電力設備製造業 | D148: 2764 | E148: 203445 | F148: 2377 | G148: 0.012 | H148: 52608 | I148: 0.2557 | J148: 29343 | K148: 0.1426 | L148: 123773 | M148: 0.6016458945
A149: 200812 | B149: C28 | C149: 電力設備製造業 | D149: 2562 | E149: 201744 | F149: 7696 | G149: 0.038 | H149: 55078 | I149: 0.2632 | J149: 21954 | K149: 0.1049 | L149: 132233 | M149: 0.6318925764
A150: 200912 | B150: C28 | C150: 電力設備製造業 | D150: 2517 | E150: 182796 | F150: 5347 | G150: 0.029 | H150: 51619 | I150: 0.2744 | J150: 22765 | K150: 0.121 | L150: 113739 | M150: 0.6045991187
A151: 201012 | B151: C28 | C151: 電力設備製造業 | D151: 2472 | E151: 178747 | F151: 3001 | G151: 0.017 | H151: 48911 | I151: 0.2692 | J151: 22809 | K151: 0.1255 | L151: 109997 | M151: 0.6053203608
A152: 201112 | B152: C28 | C152: 電力設備製造業 | D152: 2364 | E152: 173198 | F152: 1829 | G152: 0.011 | H152: 47450 | I152: 0.2711 | J152: 21827 | K152: 0.1247 | L152: 105735 | M152: 0.604158572
A153: 200712 | B153: C29 | C153: 機械設備製造業 | D153: 6448 | E153: 146765 | F153: 2436 | G153: 0.017 | H153: 73380 | I153: 0.493 | J153: 12698 | K153: 0.0853 | L153: 62764 | M153: 0.4216820521
A154: 200812 | B154: C29 | C154: 機械設備製造業 | D154: 6172 | E154: 161032 | F154: 2007 | G154: 0.012 | H154: 81462 | I154: 0.5015 | J154: 13593 | K154: 0.0837 | L154: 67391 | M154: 0.4148517046
A155: 200912 | B155: C29 | C155: 機械設備製造業 | D155: 6227 | E155: 144527 | F155: 1849 | G155: 0.013 | H155: 82970 | I155: 0.5671 | J155: 13803 | K155: 0.0943 | L155: 49536 | M155: 0.3385711064
A156: 201012 | B156: C29 | C156: 機械設備製造業 | D156: 6224 | E156: 162276 | F156: 1379 | G156: 0.008 | H156: 93200 | I156: 0.5697 | J156: 16080 | K156: 0.0983 | L156: 54320 | M156: 0.3320293399
A157: 201112 | B157: C29 | C157: 機械設備製造業 | D157: 6252 | E157: 194390 | F157: 930 | G157: 0.005 | H157: 101421 | I157: 0.5194 | J157: 21314 | K157: 0.1091 | L157: 72549 | M157: 0.37150509
A158: 200712 | B158: C30 | C158: 汽車及其零件製造業 | D158: 1379 | E158: 89427 | F158: 1087 | G158: 0.012 | H158: 41321 | I158: 0.4566 | J158: 8140 | K158: 0.0899 | L158: 41037 | M158: 0.453457535
A159: 200812 | B159: C30 | C159: 汽車及其零件製造業 | D159: 1328 | E159: 100096 | F159: 1384 | G159: 0.014 | H159: 45773 | I159: 0.4519 | J159: 8906 | K159: 0.0879 | L159: 46614 | M159: 0.4601897466
A160: 200912 | B160: C30 | C160: 汽車及其零件製造業 | D160: 1364 | E160: 97831 | F160: 841 | G160: 0.009 | H160: 45781 | I160: 0.464 | J160: 9594 | K160: 0.0972 | L160: 43290 | M160: 0.4387574114
A161: 201012 | B161: C30 | C161: 汽車及其零件製造業 | D161: 1346 | E161: 97848 | F161: 1807 | G161: 0.018 | H161: 45497 | I161: 0.4579 | J161: 12539 | K161: 0.1262 | L161: 41328 | M161: 0.4159252848
A162: 201112 | B162: C30 | C162: 汽車及其零件製造業 | D162: 1320 | E162: 90197 | F162: 9258 | G162: 0.103 | H162: 42840 | I162: 0.4308 | J162: 11570 | K162: 0.1163 | L162: 45039 | M162: 0.4528853985
A163: 200712 | B163: C31 | C163: 其他運輸工具製造業 | D163: 1194 | E163: 102730 | F163: 484 | G163: 0.005 | H163: 22356 | I163: 0.2167 | J163: 7527 | K163: 0.0729 | L163: 73306 | M163: 0.7104051788
A164: 200812 | B164: C31 | C164: 其他運輸工具製造業 | D164: 1138 | E164: 107634 | F164: 606 | G164: 0.006 | H164: 22611 | I164: 0.2091 | J164: 8077 | K164: 0.0747 | L164: 77445 | M164: 0.7162013446
A165: 200912 | B165: C31 | C165: 其他運輸工具製造業 | D165: 1164 | E165: 90367 | F165: 396 | G165: 0.004 | H165: 24387 | I165: 0.2687 | J165: 6092 | K165: 0.0671 | L165: 60281 | M165: 0.6641802556
A166: 201012 | B166: C31 | C166: 其他運輸工具製造業 | D166: 1159 | E166: 97908 | F166: 259 | G166: 0.003 | H166: 25560 | I166: 0.2604 | J166: 7797 | K166: 0.0794 | L166: 64809 | M166: 0.6601980319
A167: 201112 | B167: C31 | C167: 其他運輸工具製造業 | D167: 1162 | E167: 90003 | F167: 67 | G167: 0.001 | H167: 27473 | I167: 0.305 | J167: 6652 | K167: 0.0739 | L167: 55945 | M167: 0.6211280115
A168: 200712 | B168: C32 | C168: 家具製造業 | D168: 981 | E168: 16121 | F168: 473 | G168: 0.029 | H168: 9841 | I168: 0.5945 | J168: 1477 | K168: 0.0892 | L168: 5235 | M168: 0.3162568719
A169: 200812 | B169: C32 | C169: 家具製造業 | D169: 875 | E169: 16497 | F169: 379 | G169: 0.023 | H169: 9510 | I169: 0.5639 | J169: 1656 | K169: 0.0982 | L169: 5700 | M169: 0.3379580221
A170: 200912 | B170: C32 | C170: 家具製造業 | D170: 837 | E170: 16789 | F170: 354 | G170: 0.021 | H170: 9490 | I170: 0.5541 | J170: 1562 | K170: 0.0912 | L170: 6075 | M170: 0.3547031004
A171: 201012 | B171: C32 | C171: 家具製造業 | D171: 783 | E171: 16990 | F171: 134 | G171: 0.008 | H171: 9699 | I171: 0.567 | J171: 1238 | K171: 0.0724 | L171: 6169 | M171: 0.3606336958
A172: 201112 | B172: C32 | C172: 家具製造業 | D172: 776 | E172: 18390 | F172: 97 | G172: 0.005 | H172: 10321 | I172: 0.5588 | J172: 3004 | K172: 0.1627 | L172: 5144 | M172: 0.2785207645
A173: 200712 | B173: C33 | C173: 其他製造業 | D173: 2428 | E173: 41481 | F173: 2483 | G173: 0.06 | H173: 21706 | I173: 0.4938 | J173: 4563 | K173: 0.1038 | L173: 17687 | M173: 0.4023796524
A174: 200812 | B174: C33 | C174: 其他製造業 | D174: 2043 | E174: 43484 | F174: 1561 | G174: 0.036 | H174: 21111 | I174: 0.4689 | J174: 4181 | K174: 0.0929 | L174: 19734 | M174: 0.4382801048
A175: 200912 | B175: C33 | C175: 其他製造業 | D175: 1932 | E175: 39555 | F175: 1060 | G175: 0.027 | H175: 22493 | I175: 0.5541 | J175: 3780 | K175: 0.0931 | L175: 14322 | M175: 0.3528020692
A176: 201012 | B176: C33 | C176: 其他製造業 | D176: 1825 | E176: 46127 | F176: 651 | G176: 0.014 | H176: 25289 | I176: 0.5406 | J176: 3989 | K176: 0.0853 | L176: 17500 | M176: 0.3741074864
A177: 201112 | B177: C33 | C177: 其他製造業 | D177: 1820 | E177: 50026 | F177: 438 | G177: 0.009 | H177: 28848 | I177: 0.5719 | J177: 4755 | K177: 0.0943 | L177: 16842 | M177: 0.3338685697
A178: 200712 | B178: C34 | C178: 產業用機械設備維修及安裝業 | D178: 514 | E178: 6294 | F178: 86 | G178: 0.014 | H178: 2806 | I178: 0.4398 | J178: 560 | K178: 0.0878 | L178: 3014 | M178: 0.4724137931
A179: 200812 | B179: C34 | C179: 產業用機械設備維修及安裝業 | D179: 528 | E179: 7796 | F179: 67 | G179: 0.009 | H179: 2902 | I179: 0.3691 | J179: 708 | K179: 0.09 | L179: 4253 | M179: 0.5408877019
A180: 200912 | B180: C34 | C180: 產業用機械設備維修及安裝業 | D180: 591 | E180: 7186 | F180: 168 | G180: 0.023 | H180: 3572 | I180: 0.4857 | J180: 631 | K180: 0.0858 | L180: 3151 | M180: 0.4284742997
A181: 201012 | B181: C34 | C181: 產業用機械設備維修及安裝業 | D181: 620 | E181: 8985 | F181: 65 | G181: 0.007 | H181: 4406 | I181: 0.4869 | J181: 1181 | K181: 0.1305 | L181: 3463 | M181: 0.3826519337
A182: 201112 | B182: C34 | C182: 產業用機械設備維修及安裝業 | D182: 631 | E182: 8830 | F182: 29 | G182: 0.003 | H182: 4556 | I182: 0.5147 | J182: 1137 | K182: 0.1285 | L182: 3158 | M182: 0.3567958423
A183: 200712 | B183: D | C183: 電力及燃氣供應業 | D183: 231 | E183: 429588 | F183: 52 | G183: 0 | H183: 35086 | I183: 0.0817 | J183: 7181 | K183: 0.0167 | L183: 387373 | M183: 0.9016222884
A184: 200812 | B184: D | C184: 電力及燃氣供應業 | D184: 245 | E184: 563797 | F184: 6 | G184: 0 | H184: 36965 | I184: 0.0656 | J184: 12250 | K184: 0.0217 | L184: 514588 | M184: 0.9127088717
A185: 200912 | B185: D | C185: 電力及燃氣供應業 | D185: 248 | E185: 618391 | F185: 21 | G185: 0 | H185: 36085 | I185: 0.0584 | J185: 10851 | K185: 0.0175 | L185: 571476 | M185: 0.9241023783
A186: 201012 | B186: D | C186: 電力及燃氣供應業 | D186: 256 | E186: 744090 | F186: 6 | G186: 0 | H186: 35482 | I186: 0.0477 | J186: 9313 | K186: 0.0125 | L186: 699301 | M186: 0.9397994345
A187: 201112 | B187: D | C187: 電力及燃氣供應業 | D187: 271 | E187: 798612 | F187: 12 | G187: 0 | H187: 43659 | I187: 0.0547 | J187: 8577 | K187: 0.0107 | L187: 746388 | M187: 0.9345924991
A188: 200712 | B188: D35 | C188: 電力及燃氣供應業 | D188: 231 | E188: 429588 | F188: 52 | G188: 0 | H188: 35086 | I188: 0.0817 | J188: 7181 | K188: 0.0167 | L188: 387373 | M188: 0.9016222884
A189: 200812 | B189: D35 | C189: 電力及燃氣供應業 | D189: 245 | E189: 563797 | F189: 6 | G189: 0 | H189: 36965 | I189: 0.0656 | J189: 12250 | K189: 0.0217 | L189: 514588 | M189: 0.9127088717
A190: 200912 | B190: D35 | C190: 電力及燃氣供應業 | D190: 248 | E190: 618391 | F190: 21 | G190: 0 | H190: 36085 | I190: 0.0584 | J190: 10851 | K190: 0.0175 | L190: 571476 | M190: 0.9241023783
A191: 201012 | B191: D35 | C191: 電力及燃氣供應業 | D191: 256 | E191: 744090 | F191: 6 | G191: 0 | H191: 35482 | I191: 0.0477 | J191: 9313 | K191: 0.0125 | L191: 699301 | M191: 0.9397994345
A192: 201112 | B192: D35 | C192: 電力及燃氣供應業 | D192: 271 | E192: 798612 | F192: 12 | G192: 0 | H192: 43659 | I192: 0.0547 | J192: 8577 | K192: 0.0107 | L192: 746388 | M192: 0.9345924991
A193: 200712 | B193: E | C193: 用水供應及污染整治業 | D193: 1253 | E193: 66920 | F193: 575 | G193: 0.009 | H193: 10885 | I193: 0.1614 | J193: 5128 | K193: 0.076 | L193: 51444 | M193: 0.76261915
A194: 200812 | B194: E | C194: 用水供應及污染整治業 | D194: 1237 | E194: 69621 | F194: 494 | G194: 0.007 | H194: 12434 | I194: 0.1774 | J194: 4715 | K194: 0.0673 | L194: 52949 | M194: 0.7553567862
A195: 200912 | B195: E | C195: 用水供應及污染整治業 | D195: 1271 | E195: 75746 | F195: 526 | G195: 0.007 | H195: 14211 | I195: 0.1864 | J195: 3669 | K195: 0.0481 | L195: 58370 | M195: 0.7655081967
A196: 201012 | B196: E | C196: 用水供應及污染整治業 | D196: 1366 | E196: 80955 | F196: 435 | G196: 0.005 | H196: 16244 | I196: 0.1998 | J196: 5998 | K196: 0.0738 | L196: 59061 | M196: =L196/(H196+J196+L196) -> 0.726430759
A197: 201112 | B197: E | C197: 用水供應及污染整治業 | D197: 1383 | E197: 83276 | F197: 259 | G197: 0.003 | H197: 15575 | I197: 0.1865 | J197: 4633 | K197: 0.0555 | L197: 63302 | M197: 0.758017004
A198: 200712 | B198: E36 | C198: 用水供應業 | D198: 75 | E198: 41209 | F198: 145 | G198: 0.004 | H198: 189 | I198: 0.0046 | J198: 38 | K198: 0.0009 | L198: 41127 | M198: 0.9945108091
A199: 200812 | B199: E36 | C199: 用水供應業 | D199: 51 | E199: 41004 | F199: 8 | G199: 0 | H199: 142 | I199: 0.0035 | J199: 26 | K199: 0.0006 | L199: 40844 | M199: 0.995903638
A200: 200912 | B200: E36 | C200: 用水供應業 | D200: 50 | E200: 44519 | F200: 1 | G200: 0 | H200: 391 | I200: 0.0088 | J200: 302 | K200: 0.0068 | L200: 43829 | M200: 0.9844346615
... 342 more rows
